fUSD/lending_fUSD_20260414
["ID","MTS","AMOUNT","RATE_DAILY","PERIOD"]
[420483474,1776145775267,-638.19,0.00045216,30]
[420483475,1776145775304,-151.0,0.00045216,30]
[420483476,1776145775356,-183.35,0.00045216,30]
[420483477,1776145775406,-151.0,0.00045216,30]
[420483478,1776145775455,-151.0,0.00045216,30]
[420483479,1776145775524,-218.68,0.00045216,30]
[420483480,1776145775564,-477.85,0.00045216,30]
[420483481,1776145775595,-568.02,0.00045216,30]
[420483482,1776145775629,-151.0,0.00045216,30]
[420483483,1776145775665,-1565.04,0.00045216,30]
[420483484,1776145775702,-2426.88,0.00045216,120]
[420483485,1776145775763,-570.29,0.00045216,30]
[420483486,1776145775807,-218.68,0.00045216,30]
[420483487,1776145775865,-151.0,0.00045216,30]
[420483488,1776145775906,-183.33,0.00045216,30]
[420483489,1776145775955,-567.98,0.00045216,30]
[420483490,1776145776010,-151.0,0.00045216,30]
[420483491,1776145776070,-477.8,0.00045216,30]
[420483492,1776145776134,-638.19,0.00045216,30]
[420483493,1776145776188,-151.0,0.00045216,30]
[420483494,1776145776249,-570.24,0.00045216,30]
[420483495,1776145776303,-183.35,0.00045216,30]
[420483496,1776145776339,-218.6,0.00045216,30]
[420483497,1776145776378,-638.19,0.00045216,30]
[420483498,1776145776418,-477.83,0.00045216,30]
[420483499,1776145776453,-570.29,0.00045216,30]
[420483500,1776145776492,-151.52,0.00045216,30]
[420483501,1776145776548,-151.0,0.00045216,30]
[420483502,1776145776583,-151.0,0.00045216,30]
[420483503,1776145776626,-567.76,0.00045216,30]
[420483504,1776145776684,-183.34,0.00045216,30]
[420483505,1776145776745,-151.0,0.00045216,30]
[420483506,1776145776781,-637.08,0.00045216,30]
[420483507,1776145776815,-152.18,0.00045216,30]
[420483508,1776145776850,-567.98,0.00045216,30]
[420483509,1776145776888,-151.0,0.00045216,30]
[420483510,1776145776936,-218.39,0.00045216,30]
[420483511,1776145776988,-477.75,0.00045216,30]
[420483512,1776145777035,-570.29,0.00045216,30]
[420483513,1776145777103,-151.0,0.00045216,30]
[420483514,1776145777139,-570.29,0.00045216,30]
[420483515,1776145777185,-477.85,0.00045216,30]
[420483516,1776145777241,-638.15,0.00045216,30]
[420483517,1776145777285,-151.0,0.00045216,30]
[420483518,1776145777330,-151.0,0.00045216,30]
[420483519,1776145777414,-568.02,0.00045216,30]
[420483520,1776145777472,-151.0,0.00045216,30]
[420483521,1776145777539,-218.52,0.00045216,30]
[420483522,1776145777588,-183.35,0.00045216,30]
[420483523,1776145777624,-570.24,0.00045216,30]
[420483524,1776145777662,-568.02,0.00045216,30]
[420483525,1776145777697,-477.85,0.00045216,30]
[420483526,1776145777732,-638.15,0.00045216,30]
[420483527,1776145777771,-183.34,0.00045216,30]
[420483528,1776145777803,-151.83,0.00045216,30]
[420483529,1776145777837,-151.0,0.00045216,30]
[420483530,1776145777873,-151.0,0.00045216,30]
[420483531,1776145777905,-218.68,0.00045216,30]
[420483532,1776145777937,-500.0,0.00045216,120]
[420483533,1776145777968,-570.24,0.00045216,30]
[420483534,1776145778000,-151.0,0.00045216,30]
[420483535,1776145778033,-568.02,0.00045216,30]
[420483536,1776145778066,-638.19,0.00045216,30]
[420483537,1776145778386,-151.0,0.00045216,30]
[420483538,1776145778441,-151.0,0.00045216,30]
[420483539,1776145778499,-570.24,0.00045216,30]
[420483540,1776145778590,-477.85,0.00045216,30]
[420483541,1776145778649,-568.02,0.00045216,30]
[420483542,1776145778694,-183.27,0.00045216,30]
[420483543,1776145778730,-638.11,0.00045216,30]
[420483544,1776145778768,-218.68,0.00045216,30]
[420483545,1776145778808,-151.0,0.00045216,30]
[420483546,1776145778846,-151.0,0.00045216,30]
[420483547,1776145778885,-151.0,0.00045216,30]
[420483548,1776145778924,-638.19,0.00045216,30]
[420483549,1776145778958,-183.35,0.00045216,30]
[420483550,1776145778996,-151.13,0.00045216,30]
[420483551,1776145779039,-568.02,0.00045216,30]
[420483552,1776145779076,-151.0,0.00045216,30]
[420483553,1776145779133,-570.24,0.00045216,30]
[420483554,1776145779182,-477.85,0.00045216,30]
[420483555,1776145779254,-218.68,0.00045216,30]
[420483556,1776145779329,-151.0,0.00045216,30]
[420483557,1776145779403,-151.0,0.00045216,30]
[420483558,1776145779438,-183.35,0.00045216,30]
[420483559,1776145779475,-489.91,0.00045216,30]
[420483560,1776145779513,-568.02,0.00045216,30]
[420483561,1776145779548,-218.6,0.00045216,30]
[420483562,1776145779599,-190.98,0.00045216,30]
[420483563,1776145779640,-637.96,0.00045216,30]
[420483564,1776145779682,-331.36,0.00045216,30]
[420483565,1776145779728,-183.33,0.00045216,30]
[420483566,1776145779781,-477.85,0.00045216,30]
[420483567,1776145779829,-218.6,0.00045216,30]
[420483568,1776145779866,-568.02,0.00045216,30]
[420483569,1776145779906,-570.29,0.00045216,30]
[420483570,1776145779954,-151.0,0.00045216,30]
[420483571,1776145779985,-638.19,0.00045216,30]
[420483572,1776145780039,-570.29,0.00045216,30]
[420483573,1776145780084,-183.34,0.00045216,30]
[420483574,1776145780127,-218.52,0.00045216,30]
[420483575,1776145780168,-638.19,0.00045216,30]
[420483576,1776145780224,-567.73,0.00045216,30]
[420483577,1776145780278,-477.73,0.00045216,30]
[420483578,1776145780317,-151.0,0.00045216,30]
[420483579,1776145780370,-1505.81246812,0.00045216,30]
[420483580,1776145780416,-700.45040542,0.00045216,120]
[420483581,1776145780458,-500.0,0.00045216,120]
[420483582,1776145780492,-500.0,0.00045216,120]
[420483583,1776145780744,-500.0,0.00045216,120]
[420483584,1776145780803,-500.0,0.00045216,120]
[420483585,1776145780889,-500.0,0.00045216,120]
[420483586,1776145780938,-500.0,0.00045216,120]
[420483587,1776145780974,-523.2897104,0.00045216,120]
[420483588,1776145781007,-167.5,0.00045216,120]
[420483589,1776145781046,-150.0,0.00045216,30]
[420483590,1776145781094,-150.0,0.00045216,30]
[420483591,1776145781137,-638.19,0.00045216,30]
[420483592,1776145781177,-477.8,0.00045216,30]
[420483593,1776145781219,-150.0,0.00045216,30]
[420483594,1776145781268,-567.98,0.00045216,30]
[420483595,1776145781311,-150.0,0.00045216,30]
[420483596,1776145781349,-218.68,0.00045216,30]
[420483597,1776145781389,-150.0,0.00045216,30]
[420483598,1776145781432,-150.0,0.00045216,30]
[420483599,1776145781494,-150.0,0.00045216,30]
[420483600,1776145781547,-150.0,0.00045216,30]
[420483601,1776145781596,-194.06453581,0.00045216,30]
[420483602,1776145781658,-886.49853397,0.00045216,30]
[420483603,1776145781717,-886.49853397,0.00045216,30]
[420483604,1776145781763,-886.49853397,0.00045216,30]
[420483605,1776145781798,-886.49853397,0.00045216,30]
[420483606,1776145781843,-188.08893171,0.00045216,120]
[420483607,1776145781875,-188.08893171,0.00045216,120]
[420483608,1776145781914,-251.0,0.00045216,120]
[420483609,1776145781950,-570.29,0.00045216,30]
[420483610,1776145782004,-183.34,0.00045216,30]
[420483611,1776145782044,-151.0,0.00045216,30]
[420483612,1776145782090,-638.19,0.00045216,30]
[420483613,1776145782164,-218.52,0.00045216,30]
[420483614,1776145782211,-568.02,0.00045216,30]
[420483615,1776145782258,-260.287,0.00045216,120]
[420483616,1776145782309,-477.8,0.00045216,30]
[420483617,1776145782349,-260.287,0.00045216,120]
[420483618,1776145782393,-151.0,0.00045216,120]
[420483619,1776145782434,-156.587,0.00045216,120]
[420483620,1776145782467,-162.380719,0.00045216,120]
[420483621,1776145782505,-168.3888056,0.00045216,120]
[420483622,1776145782539,-174.61919141,0.00045216,120]
[420483623,1776145782572,-181.08010149,0.00045216,120]
[420483624,1776145782608,-187.78006525,0.00045216,120]
[420483625,1776145782665,-194.72792766,0.00045216,120]
[420483626,1776145782710,-194.72792766,0.00045216,120]
[420483627,1776145782756,-638.19,0.00045216,30]
[420483628,1776145782841,-218.68,0.00045216,30]
[420483629,1776145782906,-477.85,0.00045216,30]
[420483630,1776145782954,-568.02,0.00045216,30]
[420483631,1776145782987,-183.35,0.00045216,30]
[420483632,1776145783389,-151.0,0.00045216,30]
[420483633,1776145783432,-570.29,0.00045216,30]
[420483634,1776145783470,-680.98932731,0.00045216,120]
[420483635,1776145783504,-151.0,0.00045216,120]
[420483636,1776145783538,-151.0,0.00045216,120]
[420483637,1776145783589,-151.0,0.00045216,120]
[420483638,1776145783623,-151.0,0.00045216,120]
[420483639,1776145783655,-151.0,0.00045216,120]
[420483640,1776145783697,-151.0,0.00045216,120]
[420483641,1776145783740,-151.0,0.00045216,120]
[420483642,1776145783774,-151.0,0.00045216,120]
[420483643,1776145783814,-151.0,0.00045216,120]
[420483644,1776145783866,-151.0,0.00045216,120]
[420483645,1776145783931,-151.0,0.00045216,120]
[420483646,1776145783986,-3768654.81460668,0.00045216,30]
[420483647,1776145784039,-570.29,0.00045216,30]
[420483648,1776145784132,-638.19,0.00045216,30]
[420483649,1776145784163,-218.68,0.00045216,30]
[420483650,1776145784194,-568.02,0.00045216,30]
[420483651,1776145784239,-183.35,0.00045216,30]
[420483652,1776145784276,-151.0,0.00045216,30]
[420483653,1776145784312,-477.54,0.00045216,30]
[420483654,1776145784348,-500.0,0.00045216,30]
[420483655,1776145784383,-500.0,0.00045216,30]
[420483656,1776145784417,-259.11662413,0.00045216,30]
[420483657,1776145784456,-1780.18,0.00045216,120]
[420483658,1776145784489,-314.88,0.00045216,30]
[420483659,1776145785431,291.05889724,0.00045216,30]
[420483660,1776145785517,18652.19244499,0.00045216,30]
[420483661,1776145785671,61252.82508075,0.00045216,30]
[420483662,1776145786623,881.1,0.00045216,120]
[420483663,1776145788544,520.0,0.00045216,120]
[420483664,1776145788620,500.0,0.00045216,120]
[420483665,1776145788667,151.0,0.00045216,120]
[420483666,1776145788718,1030.0,0.00045216,120]
[420483667,1776145788781,500.0,0.00045216,120]
[420483668,1776145788892,6888.0,0.00045216,120]
[420483669,1776145788971,500.0,0.00045216,120]
[420483670,1776145789118,539.24,0.00045216,120]
[420483671,1776145789184,340.0,0.00045216,30]
[420483672,1776145789230,500.0,0.00045216,120]
[420483673,1776145789274,151.0,0.00045216,120]
[420483674,1776145789335,500.0,0.00045216,120]
[420483675,1776145789433,518.5,0.00045216,120]
[420483676,1776145789543,1068.11,0.00045216,120]
[420483677,1776145789614,559.19188,0.00045216,120]
[420483678,1776145789704,500.0,0.00045216,120]
[420483679,1776145789762,151.0,0.00045216,120]
[420483680,1776145789866,500.0,0.00045216,120]
[420483681,1776145789980,537.6845,0.00045216,120]
[420483682,1776145790053,579.88197956,0.00045216,120]
[420483683,1776145790137,500.0,0.00045216,120]
[420483684,1776145790178,500.0,0.00045216,120]
[420483685,1776145790234,151.0,0.00045216,120]
[420483686,1776145790316,557.5788265,0.00045216,120]
[420483687,1776145790379,601.3376128,0.00045216,120]
[420483688,1776145790442,500.0,0.00045216,120]
[420483689,1776145790508,500.0,0.00045216,120]
[420483690,1776145790572,151.0,0.00045216,120]
[420483691,1776145790665,578.20924308,0.00045216,120]
[420483692,1776145790724,623.58710448,0.00045216,120]
[420483693,1776145790864,500.0,0.00045216,120]
[420483694,1776145791015,151.0,0.00045216,120]
[420483695,1776145791148,500.0,0.00045216,120]
[420483696,1776145791248,599.60298507,0.00045216,120]
[420483697,1776145791310,646.65982734,0.00045216,120]
[420483698,1776145791386,500.0,0.00045216,120]
[420483699,1776145791434,2841217.74806525,0.00045216,30]
[420483700,1776145802336,250.0,4.807e-05,2]
[420483701,1776145805899,223.0,4.807e-05,2]
[420483702,1776145806989,-300.0,9.003e-05,2]
[420483703,1776145807051,-151.0,9.004e-05,2]
[420483704,1776145807093,-174.61919141,9.004e-05,2]
[420483705,1776145807138,-211.65034056,9.009e-05,2]
[420483707,1776145819640,250.0,5.288e-05,2]
[420483757,1776145835732,169.19,7.098e-05,2]
[420483758,1776145835851,-248.9,8.909e-05,2]
[420483759,1776145835861,-278.58913023,9.01e-05,2]
[420483760,1776145835938,-287.06431718,9.01e-05,2]
[420483761,1776145835955,-894.93568282,9.01e-05,2]
[420483762,1776145836571,250.0,6.73e-05,2]
[420483763,1776145836855,-7025.75296537,9.01e-05,2]
[420483764,1776145836866,-3828.8779044,9.01e-05,2]
[420483765,1776145836875,-1825.1508743,9.092e-05,2]
[420483766,1776145836885,-150.0,9.1e-05,2]
[420483767,1776145836900,-5265.0402,9.158e-05,2]
[420483768,1776145836911,-4154.5554,9.158e-05,2]
[420483769,1776145836922,-5599.6307,9.158e-05,2]
[420483770,1776145836935,-3406.736,9.164e-05,2]
[420483771,1776145836945,-230.103,9.164e-05,2]
[420483772,1776145836958,-7326.20212025,9.258e-05,2]
[420483789,1776145839040,4976.59,8.943e-05,2]
[420483817,1776145840332,-4672.37343719,9.258e-05,2]
[420483818,1776145840387,-593.00178,9.258e-05,2]
[420483821,1776145842116,-1810.91461116,9.258e-05,2]
[420483822,1776145842320,-29309.7180514,9.258e-05,2]
[420483823,1776145842334,-165.0,9.258e-05,2]
[420483824,1776145842359,-2500.0,9.275e-05,2]
[420483825,1776145842370,-500.0,9.374e-05,2]
[420483826,1776145842388,-500.0,9.374e-05,2]
[420483827,1776145842421,-500.0,9.374e-05,2]
[420483828,1776145842447,-500.0,9.374e-05,2]
[420483829,1776145842463,-227.44248987,9.374e-05,2]
[420483830,1776145842485,-500.0,9.374e-05,2]
[420483831,1776145842510,-500.0,9.374e-05,2]
[420483832,1776145842523,-500.0,9.374e-05,2]
[420483833,1776145842570,-500.0,9.374e-05,2]
[420483834,1776145842586,-500.0,9.374e-05,2]
[420483835,1776145842598,-500.0,9.374e-05,2]
[420483836,1776145842637,-500.0,9.374e-05,2]
[420483837,1776145842648,-500.0,9.374e-05,2]
[420483838,1776145842665,-172.92276185,9.374e-05,2]
[420483839,1776145842680,-207.05447176,9.374e-05,2]
[420483840,1776145842689,-266.8965379,9.374e-05,2]
[420483841,1776145842720,-219.93902778,9.374e-05,2]
[420483842,1776145842730,-16669.38150449,9.375e-05,2]
[420483843,1776145842751,-336.7928466,9.375e-05,2]
[420483844,1776145842777,-2075.70576896,9.375e-05,2]
[420483845,1776145842895,-972.27358372,9.375e-05,2]
[420483847,1776145842948,-705.60285014,9.375e-05,2]
[420483850,1776145842968,-1407.52319047,9.375e-05,2]
[420483888,1776145844167,-82711.50848822,9.375e-05,2]
[420483890,1776145844189,-41177.7641391,9.375e-05,2]
[420483892,1776145844199,-152.0,9.375e-05,2]
[420483894,1776145844209,-152.0,9.375e-05,2]
[420483896,1776145844233,-19724.66,9.493e-05,2]
[420483898,1776145844252,-1800.0,9.7e-05,3]
[420483900,1776145844268,-165.85,9.735e-05,2]
[420483902,1776145844305,-3700.0,9.8e-05,3]
[420483904,1776145844328,-2725.37242156,9.8e-05,2]
[420483905,1776145844348,-500.0,9.899e-05,2]
[420483907,1776145844394,-500.0,9.899e-05,2]
[420483910,1776145844417,-338.54123769,9.899e-05,2]
[420483911,1776145844446,-500.0,9.899e-05,2]
[420483913,1776145844474,-248.82721457,9.899e-05,2]
[420483916,1776145844489,-500.0,9.899e-05,2]
[420483918,1776145844498,-500.0,9.899e-05,2]
[420483920,1776145844522,-500.0,9.899e-05,2]
[420483922,1776145844550,-500.0,9.899e-05,2]
[420483924,1776145844559,-346.0724697,9.899e-05,2]
[420483926,1776145844572,-392.18541415,9.899e-05,2]
[420483927,1776145844596,-261.0,9.9e-05,5]
[420483929,1776145844605,-500.0,9.9e-05,2]
[420483931,1776145844619,-236938.64010535,9.9e-05,2]
[420483934,1776145844645,-151916.53012944,9.9e-05,2]
[420484038,1776145846334,-1148.41000159,9.9e-05,2]
[420484082,1776145847138,-481.3395008,9.657e-05,2]
[420484104,1776145847457,-732.23943309,9.657e-05,2]
[420484132,1776145847879,-607.53665363,9.657e-05,2]
[420484503,1776145892417,579.70114246,7.604e-05,2]
[420484505,1776146093309,-500.0,9.011e-05,2]
[420484506,1776146113586,1500.0,9.002e-05,2]
[420484507,1776146168903,1612.85,8.994e-05,2]
[420484508,1776146270128,2570.78,8.965e-05,2]
[420484509,1776146315495,3316.38,8e-05,2]
[420484510,1776146315524,2716.29795001,8e-05,2]
[420484511,1776146349190,523.67661973,9.011e-05,2]
[420484512,1776146407950,5105.12,8.957e-05,2]
[420484513,1776146416684,-279.0,9.033e-05,2]
[420484514,1776146431616,-500.0,9.033e-05,2]
[420484516,1776146529766,9000.01,8.885e-05,2]
[420484517,1776146529808,991.93,8.885e-05,2]
[420484518,1776146537286,200.0,8.885e-05,2]
[420484520,1776146775816,437.41,0.00014438,30]
[420484521,1776146776268,874.83,0.0001532,30]
[420484522,1776146776578,1312.24,0.00016201,30]
[420484546,1776146870710,404.01,0.00014694,30]
[420484547,1776146870801,808.02,0.00015591,30]
[420484548,1776146871095,1212.04,0.00016487,30]
[420484549,1776146966625,373.16,0.00014608,30]
[420484550,1776146966988,746.32,0.000155,30]
[420484551,1776146967335,1119.48,0.00016391,30]
[420484552,1776146998085,2000.0,8.909e-05,2]
[420484553,1776147015540,-150.0,9.057e-05,2]
[420484554,1776147015576,-1200.0,9.057e-05,2]
[420484555,1776147015606,-250.0,9.057e-05,2]
[420484556,1776147015640,-8400.0,9.058e-05,2]
[420484557,1776147016490,-10000.0,9.058e-05,2]
[420484558,1776147017287,-2236.928,9.058e-05,2]
[420484559,1776147017385,-2500.0,9.058e-05,2]
[420484560,1776147017432,-522.59,9.141e-05,2]
[420484561,1776147017477,-4614.769,9.157e-05,2]
[420484562,1776147017517,-125.713,9.157e-05,2]
[420484563,1776147017601,-201.493,9.157e-05,2]
[420484564,1776147017634,-9798.507,9.158e-05,2]
[420484565,1776147017735,-10000.0,9.158e-05,2]
[420484566,1776147018064,-10000.0,9.158e-05,2]
[420484567,1776147019037,-10000.0,9.158e-05,2]
[420484568,1776147019250,-10000.0,9.158e-05,2]
[420484569,1776147019339,-10000.0,9.158e-05,2]
[420484570,1776147019897,-10000.0,9.158e-05,2]
[420484571,1776147020286,-10000.0,9.158e-05,2]
[420484572,1776147020888,-10000.0,9.158e-05,2]
[420484573,1776147021376,-10000.0,9.158e-05,2]
[420484574,1776147021736,-10000.0,9.158e-05,2]
[420484575,1776147022144,-4720.0313,9.158e-05,2]
[420484576,1776147022180,-5279.9687,9.158e-05,2]
[420484577,1776147022563,-10000.0,9.158e-05,2]
[420484578,1776147022939,-10000.0,9.158e-05,2]
[420484579,1776147023359,-10000.0,9.158e-05,2]
[420484580,1776147023711,-10000.0,9.158e-05,2]
[420484581,1776147024258,-10000.0,9.158e-05,2]
[420484582,1776147024840,-265.8209,9.158e-05,2]
[420484583,1776147032503,-150.0,9.452e-05,2]
[420484584,1776147032544,-344.97495455,9.479e-05,2]
[420484585,1776147032620,-655.01504545,9.479e-05,2]
[420484586,1776147032632,-98.0684133,9.479e-05,2]
[420484587,1776147032647,-1094.1815867,9.479e-05,2]
[420484588,1776147032661,-951.74,9.479e-05,2]
[420484589,1776147032678,-500.0,9.479e-05,2]
[420484590,1776147032693,-150.99,9.557e-05,2]
[420484591,1776147032717,-299.99,9.557e-05,2]
[420484592,1776147032728,-5622.77703291,9.557e-05,2]
[420484593,1776147032744,-2245.88125224,9.557e-05,2]
[420484594,1776147032788,9734.1791,9.057e-05,2]
[420484599,1776147032820,10000.0,9.057e-05,2]
[420484603,1776147032851,10000.0,9.057e-05,2]
[420484605,1776147032875,10000.0,9.057e-05,2]
[420484606,1776147032903,10000.0,9.057e-05,2]
[420484607,1776147032931,10000.0,9.057e-05,2]
[420484608,1776147032964,-530.12669042,9.057e-05,2]
[420484609,1776147032982,-79218.05364772,9.057e-05,2]
[420484610,1776147032993,-351.95748645,9.057e-05,2]
[420484613,1776147039029,-3977.17419144,9.057e-05,2]
[420484632,1776147041256,-644.20590704,9.057e-05,2]
[420484633,1776147041267,-688.8580236,9.057e-05,2]
[420484651,1776147043643,-298557.86766377,9.057e-05,2]
[420484652,1776147043909,-900.05641542,9.057e-05,2]
[420484653,1776147043920,-2885.39249399,9.057e-05,2]
[420484655,1776147045049,-10000.0,9.057e-05,2]
[420484656,1776147045645,-10000.0,9.057e-05,2]
[420484657,1776147045966,-10000.0,9.057e-05,2]
[420484660,1776147047034,-5590.0,9.057e-05,2]
[420484661,1776147047085,-10000.0,9.057e-05,2]
[420484663,1776147047179,-10000.0,9.057e-05,2]
[420484666,1776147047565,-10000.0,9.057e-05,2]
[420484667,1776147050022,-10000.0,9.057e-05,2]
[420484668,1776147057547,344.66,0.00014846,30]
[420484669,1776147057903,689.33,0.00015753,30]
[420484670,1776147064803,-300.0,9.056e-05,2]
[420484671,1776147064827,-9700.0,9.057e-05,2]
[420484672,1776147066967,-10000.0,9.057e-05,2]
[420484673,1776147068829,-10000.0,9.057e-05,2]
[420484674,1776147070893,-10000.0,9.057e-05,2]
[420484680,1776147147424,331.5,0.00016401,30]
[420484681,1776147190013,-1838.462226,9.01e-05,2]
[420484682,1776147243723,327.29,0.00010814,30]
[420484683,1776147244120,654.57,0.00011474,30]
[420484684,1776147244501,981.86,0.00012134,30]
[420484685,1776147244865,1309.14,0.00012794,30]
[420484686,1776147245222,1636.43,0.00013454,30]
[420484687,1776147246472,1963.71,0.00014114,30]
[420484688,1776147246843,2291.0,0.00014774,30]
[420484689,1776147247202,2618.28,0.00015434,30]
[420484690,1776147247551,2945.57,0.00016094,30]
[420484691,1776147328616,1852.42,8.849e-05,2]
[420484692,1776147335104,150.0,0.00010713,30]
[420484693,1776147335476,279.68,0.00011367,30]
[420484694,1776147335807,419.52,0.00012021,30]
[420484695,1776147336185,559.36,0.00012675,30]
[420484696,1776147336552,699.2,0.00013328,30]
[420484697,1776147336958,839.04,0.00013982,30]
[420484698,1776147337889,978.88,0.00014636,30]
[420484699,1776147338129,1118.72,0.0001529,30]
[420484700,1776147338255,1258.56,0.00015944,30]
[420484701,1776147421030,150.0,0.00010344,30]
[420484702,1776147421533,150.0,0.00010976,30]
[420484703,1776147421781,178.86,0.00011607,30]
[420484704,1776147422161,238.48,0.00012238,30]
[420484705,1776147422500,298.1,0.0001287,30]
[420484706,1776147422843,357.72,0.00013501,30]
[420484707,1776147423204,417.34,0.00014133,30]
[420484708,1776147424536,476.96,0.00014764,30]
[420484709,1776147424683,536.58,0.00015395,30]
[420484710,1776147425549,596.2,0.00016027,30]
[420484711,1776147442311,463.0,8.55e-05,2]
[420484712,1776147512651,4007.665548,8.605e-05,2]
[420484713,1776147512682,10000.01,8.605e-05,2]
[420484714,1776147512718,10000.01,8.605e-05,2]
[420484715,1776147512756,10000.01,8.605e-05,2]
[420484716,1776147512790,10000.01,8.605e-05,2]
[420484717,1776147512817,3640.464452,8.605e-05,2]
[420484718,1776147688329,3691.815,8.877e-05,2]
[420484719,1776147688410,261.765,8.877e-05,2]
[420484720,1776147737221,-2500.0,8.958e-05,2]
[420484721,1776147738795,150.0,0.00014613,30]
[420484722,1776147740490,150.0,0.00015505,30]
[420484723,1776147740780,150.0,0.00016397,30]
[420484724,1776147780746,1923.7933,8.958e-05,2]
[420484725,1776147867972,2500.0,8.958e-05,2]
[420484726,1776147997857,150.0,0.00011281,30]
[420484727,1776147998213,150.0,0.00011969,30]
[420484728,1776147998581,150.0,0.00012658,30]
[420484729,1776147998936,150.0,0.00013346,30]
[420484730,1776147999317,150.0,0.00014035,30]
[420484731,1776148019821,576.2167,8.8e-05,3]
[420484732,1776148019867,1123.7833,8.8e-05,3]
[420484733,1776148021762,3500.0,8.9e-05,3]
[420484734,1776148024775,2500.0,8.958e-05,2]
[420484735,1776148030488,153.26,8.304e-05,2]
[420484739,1776148032547,1600.0,8.304e-05,2]
[420484740,1776148147025,10000.01,8.957e-05,2]
[420484741,1776148147067,10000.01,8.957e-05,2]
[420484742,1776148147103,10000.01,8.957e-05,2]
[420484743,1776148147140,10000.01,8.957e-05,2]
[420484744,1776148147175,10000.01,8.957e-05,2]
[420484745,1776148147210,10000.01,8.957e-05,2]
[420484746,1776148147245,10000.01,8.957e-05,2]
[420484747,1776148147275,10000.01,8.957e-05,2]
[420484748,1776148147315,10000.01,8.957e-05,2]
[420484749,1776148147356,10000.01,8.957e-05,2]
[420484759,1776148164928,3174.8,8.292e-05,2]
[420484760,1776148201291,1200.0,8.956e-05,2]
[420484761,1776148201521,300.0,8.956e-05,2]
[420484762,1776148201898,300.0,8.956e-05,2]
[420484763,1776148202164,150.0,8.956e-05,2]
[420484767,1776148231793,-18605.2585416,8.957e-05,2]
[420484768,1776148231836,-414.34315811,8.957e-05,2]
[420484769,1776148231878,-547.70912,8.957e-05,2]
[420484770,1776148231910,-66048.92309292,8.957e-05,2]
[420484772,1776148231924,-9696.32387094,8.957e-05,2]
[420484774,1776148231967,-760.0,8.957e-05,2]
[420484786,1776148237941,-1482.36647638,8.957e-05,2]
[420484787,1776148238014,-507.71285999,8.957e-05,2]
[420484788,1776148238181,-22906.11458006,8.957e-05,2]
[420484789,1776148238208,-278.0,8.957e-05,2]
[420484790,1776148238246,-945.08096725,8.957e-05,2]
[420484791,1776148238258,-6352.31724875,8.957e-05,2]
[420484792,1776148238275,-2500.0,8.958e-05,2]
[420484793,1776148238292,-134277.03290086,8.958e-05,2]
[420484794,1776148238441,-8460.0,8.958e-05,2]
[420484795,1776148238461,-213445.8,8.958e-05,2]
[420484796,1776148238481,-14865.27321156,8.958e-05,2]
[420484805,1776148240728,-5300.64767865,8.958e-05,2]
[420484822,1776148243652,-3618.38503812,8.958e-05,2]
[420484823,1776148243668,-300.0,8.958e-05,2]
[420484824,1776148243781,-4437.32305887,8.958e-05,2]
[420484825,1776148243922,-587.97696761,8.958e-05,2]
[420484830,1776148246436,-2147.61977035,8.958e-05,2]
[420484832,1776148246479,-28507.44894553,8.958e-05,2]
[420484833,1776148246491,-11200.88540321,8.958e-05,2]
[420484835,1776148246575,-1623.30494545,8.958e-05,2]